bitfinex-derivatives/quotes_BTCF0:USTF0_20250729
["timestamp","ask_amount","ask_price","bid_price","bid_amount"]
[1753814389384,1.78969657,117860.0,117850.0,0.6370346]
[1753814391294,1.79811754,117860.0,117850.0,0.6370346]
[1753814393600,1.79811754,117860.0,117850.0,0.4844611]
[1753814396199,1.79811754,117860.0,117850.0,0.5447611]
[1753814399503,1.79811754,117860.0,117850.0,0.4844611]
[1753814401206,1.79811754,117860.0,117850.0,0.5447611]
[1753814401502,1.55598387,117860.0,117850.0,0.5447611]
[1753814401702,1.79811754,117860.0,117850.0,0.5447611]
[1753814404506,1.81993026,117860.0,117850.0,0.5447611]
[1753814405006,1.79811754,117860.0,117850.0,0.5447611]
[1753814405506,1.79811754,117860.0,117850.0,0.5457611]
[1753814408003,1.55598387,117860.0,117850.0,0.5457611]
[1753814408302,1.674449,117870.0,117860.0,0.5097327]
[1753814408499,1.93840915,117870.0,117860.0,0.34001]
[1753814408806,0.5082426,117860.0,117850.0,0.4430285]
[1753814408993,0.5082426,117860.0,117850.0,0.5531685]
[1753814408994,0.8690426,117860.0,117850.0,0.5531685]
[1753814409200,0.0463,117860.0,117850.0,0.79530217]
[1753814409707,0.0463,117860.0,117850.0,0.79430217]
[1753814410304,0.0463,117860.0,117850.0,1.15510217]
[1753814410809,0.0463,117860.0,117850.0,1.15610217]
[1753814411408,0.0463,117860.0,117850.0,1.83518217]
[1753814412206,0.0463,117860.0,117850.0,1.15810217]
[1753814412406,0.2160227,117860.0,117850.0,1.2330485]
[1753814412610,0.2160227,117860.0,117850.0,1.2370485]
[1753814412811,0.3983327,117860.0,117850.0,1.2370485]
[1753814413010,0.4473627,117860.0,117850.0,1.2370485]
[1753814413712,0.27764,117860.0,117850.0,1.2370485]
[1753814413908,0.0463,117860.0,117850.0,1.5978485]
[1753814414108,0.0463,117860.0,117850.0,1.83998217]
[1753814414512,0.0463,117860.0,117850.0,1.5978485]
[1753814415804,0.70361,117870.0,117860.0,0.3036926]
[1753814416001,0.70361,117870.0,117860.0,0.4989126]
[1753814416907,0.70361,117870.0,117860.0,0.4999126]
[1753814417107,0.70361,117870.0,117860.0,0.5019126]
[1753814418212,0.5136,117870.0,117860.0,0.5019126]
[1753814419117,0.59642,117870.0,117860.0,0.5019126]
[1753814419319,0.64207,117870.0,117860.0,0.5019126]
[1753814419818,0.28127,117870.0,117860.0,0.8627126]
[1753814420022,0.07836,117870.0,117860.0,1.10484627]
[1753814420319,0.04665,117870.0,117860.0,1.10484627]
[1753814420708,0.04665,117870.0,117860.0,0.8627126]
[1753814422321,0.1528,117880.0,117870.0,0.4988983]
[1753814422513,0.1528,117880.0,117870.0,1.1773783]
[1753814422710,0.23562,117880.0,117870.0,1.1773783]
[1753814422914,0.34281,117880.0,117870.0,1.1773783]
[1753814423721,0.34281,117880.0,117870.0,1.1783783]
[1753814424020,0.34281,117880.0,117870.0,1.24555919]
[1753814424221,0.04665,117880.0,117870.0,1.24555919]
[1753814425908,0.81727367,117890.0,117880.0,0.1696939]
[1753814426110,0.70361,117890.0,117880.0,0.4988839]
[1753814426423,0.71197056,117890.0,117880.0,0.4988839]
[1753814426819,0.3608,117890.0,117880.0,0.4988839]
[1753814427019,0.40745,117890.0,117880.0,0.4988839]
[1753814427223,0.3608,117890.0,117880.0,0.4988839]
[1753814427422,0.70361,117900.0,117890.0,0.4988695]
[1753814427822,0.70361,117900.0,117890.0,1.1771495]
[1753814429225,0.70461,117900.0,117890.0,1.1771495]
[1753814431132,0.70561,117900.0,117890.0,1.1771495]
[1753814432825,0.94774367,117900.0,117890.0,1.1771495]
[1753814433026,0.58694367,117900.0,117890.0,1.1771495]
[1753814434332,0.34481,117900.0,117890.0,1.1771495]
[1753814435529,0.34481,117900.0,117890.0,1.5379495]
[1753814437935,0.002,117900.0,117890.0,1.5379495]
[1753814438526,0.04865,117900.0,117890.0,1.5379495]
[1753814438933,0.12309,117900.0,117890.0,1.5379495]
[1753814439133,0.1548,117900.0,117890.0,1.5379495]
[1753814439329,0.23762,117900.0,117890.0,1.5379495]
[1753814439529,0.28327,117900.0,117890.0,1.5379495]
[1753814441436,0.58694367,117900.0,117890.0,1.5379495]
[1753814441638,0.58694367,117900.0,117890.0,1.1771495]
[1753814442237,0.34481,117900.0,117890.0,1.1771495]
[1753814445548,0.58694367,117900.0,117890.0,1.1771495]
[1753814446848,0.61701663,117900.0,117890.0,1.1771495]
[1753814448147,0.002,117900.0,117890.0,1.81015613]
[1753814448448,0.27420663,117900.0,117890.0,1.81015613]
[1753814448944,0.31977663,117900.0,117890.0,1.81015613]
[1753814449352,0.39221663,117900.0,117890.0,1.81015613]
[1753814449848,1.00720836,117900.0,117890.0,0.8479595]
[1753814450047,1.41496836,117900.0,117890.0,1.0711995]
[1753814450247,2.11427089,117900.0,117890.0,0.1696795]
[1753814450448,0.3789995,117890.0,117880.0,0.27362645]
[1753814450752,1.41298276,117890.0,117880.0,0.2545241]
[1753814450950,1.14077613,117890.0,117880.0,0.2545241]
[1753814451851,1.14077613,117890.0,117880.0,0.3865241]
[1753814452546,1.16241351,117890.0,117880.0,0.4783241]
[1753814452749,1.13228002,117890.0,117880.0,0.4783241]
[1753814455054,1.11064264,117890.0,117880.0,0.5386241]
[1753814455253,1.11064264,117890.0,117880.0,0.5858741]
[1753814456149,1.11064264,117890.0,117880.0,0.5255741]
[1753814456354,1.11064264,117890.0,117880.0,0.4783241]
[1753814457557,1.13227662,117890.0,117880.0,0.4783241]
[1753814458356,1.11064264,117890.0,117880.0,0.4783241]
[1753814461652,1.11064264,117890.0,117880.0,0.2121031]
[1753814462152,1.11064264,117890.0,117880.0,0.4359031]
[1753814462858,1.11064264,117890.0,117880.0,0.3039031]
[1753814463160,1.11064264,117890.0,117880.0,0.2712331]
[1753814464052,0.5077841,117880.0,117870.0,0.1697034]
[1753814464357,2.03049038,117880.0,117870.0,0.1697034]
[1753814464758,1.78841724,117880.0,117870.0,0.3017034]
[1753814464960,1.78841724,117880.0,117870.0,0.3935034]
[1753814465959,1.5463441,117880.0,117870.0,0.3935034]
[1753814466159,1.78841724,117880.0,117870.0,0.3935034]
[1753814466358,1.78841724,117880.0,117870.0,0.4538034]
[1753814471663,1.78841724,117880.0,117870.0,0.5010534]
[1753814473461,1.78841724,117880.0,117870.0,0.5020534]
[1753814477766,1.78841724,117880.0,117870.0,0.4417534]
[1753814478159,1.78841724,117880.0,117870.0,0.3945034]
[1753814479768,1.78841724,117880.0,117870.0,0.2298334]
[1753814480068,1.78841724,117880.0,117870.0,0.1707034]
[1753814481872,2.03049038,117880.0,117870.0,0.001]
[1753814482073,2.03049038,117880.0,117870.0,0.1707088]
[1753814483269,2.03049038,117880.0,117870.0,0.1697088]
[1753814489168,0.4639088,117870.0,117860.0,0.5222173]
[1753814489368,1.11536194,117870.0,117860.0,0.5222173]
[1753814490166,1.11536194,117870.0,117840.0,0.37972253]
[1753814490363,0.7113568,117870.0,117860.0,0.001]
[1753814490568,1.63118994,117870.0,117860.0,0.001]
[1753814490766,1.93404098,117870.0,117860.0,0.1707232]
[1753814491064,2.13840098,117870.0,117860.0,0.1707232]
[1753814491270,2.13840098,117870.0,117860.0,0.3959432]
[1753814492873,2.13840098,117870.0,117860.0,0.22522]
[1753814493267,0.2184031,117860.0,117850.0,0.5032475]
[1753814493462,1.14576519,117860.0,117850.0,0.5032475]
[1753814493668,0.5125175,117850.0,117840.0,0.58919313]
[1753814493870,1.14577959,117850.0,117840.0,0.5456978]
[1753814494772,1.14577959,117850.0,117840.0,0.5476978]
[1753814494773,1.11553179,117850.0,117840.0,0.5476978]
[1753814495178,1.11553179,117850.0,117840.0,0.5486978]
[1753814495375,1.12396999,117850.0,117840.0,0.5486978]
[1753814496074,1.80360999,117850.0,117840.0,0.5486978]
[1753814499374,1.80360999,117850.0,117840.0,0.2645278]
[1753814499678,1.80360999,117850.0,117840.0,0.4403978]
[1753814499878,1.80360999,117850.0,117840.0,0.5006978]
[1753814500479,1.80360999,117850.0,117840.0,0.5486978]
[1753814509182,1.80360999,117850.0,117840.0,0.4403978]
[1753814512988,1.5613957,117850.0,117840.0,0.4403978]
[1753814513178,0.58499429,117850.0,117840.0,0.5450778]
[1753814513384,0.08121,117850.0,117840.0,0.78729209]
[1753814513580,0.15281,117850.0,117840.0,0.78729209]
[1753814513780,0.2364,117850.0,117840.0,0.78729209]
[1753814513982,0.28598,117850.0,117840.0,0.78729209]
[1753814514283,0.08121,117850.0,117840.0,0.78729209]
[1753814514687,0.08121,117850.0,117840.0,0.5450778]
[1753814514882,1.3650823,117860.0,117850.0,0.3039576]
[1753814515192,1.3650823,117860.0,117850.0,0.4935976]
[1753814515193,1.4146623,117860.0,117850.0,0.4935976]
[1753814515386,1.5478023,117860.0,117850.0,0.4935976]
[1753814516590,1.5478023,117860.0,117850.0,0.4945976]
[1753814517290,0.8684423,117860.0,117850.0,0.4945976]
[1753814517487,1.5476823,117860.0,117850.0,0.4945976]
[1753814517890,1.78989659,117860.0,117850.0,0.4945976]
[1753814523592,1.5476823,117860.0,117850.0,0.4945976]
[1753814523793,1.78989659,117860.0,117850.0,0.4945976]
[1753814525484,1.5476823,117860.0,117850.0,0.4945976]
[1753814525688,1.78989659,117860.0,117850.0,0.4945976]
[1753814527295,1.11065659,117860.0,117850.0,0.4945976]
[1753814532810,1.14083985,117860.0,117850.0,0.4945976]
[1753814533708,1.14083985,117860.0,117850.0,0.1707376]
[1753814534104,1.4132374,117860.0,117850.0,0.001]
[1753814534414,0.5039577,117850.0,117840.0,0.2970504]
[1753814534606,2.0891928,117850.0,117840.0,0.2970504]
[1753814534812,1.78664301,117850.0,117840.0,0.2970504]
[1753814535616,1.5443977,117850.0,117840.0,0.2970504]
[1753814535810,1.78664301,117850.0,117840.0,0.2970504]
[1753814536004,1.78664301,117850.0,117840.0,0.2980504]
[1753814539614,1.78664301,117850.0,117840.0,0.2556135]
[1753814540210,1.78664301,117850.0,117840.0,0.170742]
[1753814541919,2.02888832,117850.0,117840.0,0.001]
[1753814542124,0.5039722,117840.0,117830.0,0.2546351]
[1753814542422,1.34926282,117840.0,117830.0,0.2546351]
[1753814542719,1.10701751,117840.0,117830.0,0.2546351]
[1753814543317,1.10701751,117840.0,117830.0,0.2576351]
[1753814544618,1.10701751,117840.0,117830.0,0.003]
[1753814544816,0.4206507,117820.0,117810.0,0.254679]
[1753814545013,1.78648601,117820.0,117810.0,0.254679]
[1753814546714,2.14728601,117820.0,117810.0,0.257679]
[1753814546912,2.14728601,117820.0,117810.0,0.261679]
[1753814547514,2.1558721,117820.0,117810.0,0.261679]
[1753814550921,2.1558721,117820.0,117810.0,0.1767835]
[1753814555029,2.1558721,117820.0,117810.0,0.007]
[1753814555229,0.4529138,117790.0,117780.0,0.3877221]
[1753814555529,1.10501911,117790.0,117780.0,0.2565121]
[1753814555730,1.10501911,117790.0,117780.0,0.3877221]
[1753814556320,1.10501911,117790.0,117780.0,0.3907221]
[1753814556525,1.10501911,117790.0,117780.0,0.2550121]
[1753814556722,1.10501911,117790.0,117780.0,0.1758221]
[1753814557327,1.10501911,117790.0,117780.0,0.006]
[1753814557927,1.10501911,117790.0,117780.0,0.1758384]
[1753814558233,1.10501911,117790.0,117780.0,0.1728384]
[1753814558930,1.10501911,117790.0,117780.0,0.3040484]
[1753814559624,1.1718483,117790.0,117780.0,0.3907384]
[1753814560132,1.1718483,117790.0,117780.0,0.3877384]
[1753814560334,1.1718483,117790.0,117780.0,0.3887384]
[1753814563235,0.92960299,117790.0,117780.0,0.3887384]
[1753814563531,1.1718483,117790.0,117780.0,0.3887384]
[1753814564332,1.60988299,117790.0,117780.0,0.4822384]
[1753814564628,0.33215,117790.0,117780.0,0.4822384]
[1753814564834,1.4515073,117800.0,117790.0,0.4812238]
[1753814565129,0.6085594,117800.0,117790.0,0.4812238]
[1753814565433,0.14721,117800.0,117790.0,0.4812238]
[1753814565836,0.22495,117800.0,117790.0,0.4812238]
[1753814566133,0.4436394,117800.0,117790.0,0.4812238]
[1753814566732,0.4980294,117800.0,117790.0,0.4812238]
[1753814566932,0.74027471,117800.0,117790.0,0.4812238]
[1753814567233,0.74127471,117800.0,117790.0,0.4812238]
[1753814567532,1.10207471,117800.0,117790.0,0.4812238]
[1753814573730,1.10207471,117800.0,117790.0,0.3799838]
[1753814573936,1.10207471,117800.0,117790.0,0.2251638]
[1753814574938,1.10207471,117800.0,117790.0,0.3496638]
[1753814575138,1.12399217,117800.0,117790.0,0.3496638]
[1753814575339,1.12399217,117800.0,117790.0,0.3799838]
[1753814575736,1.12399217,117800.0,117790.0,0.4812238]
[1753814584540,1.12399217,117800.0,117790.0,0.1698238]
[1753814584742,1.36623748,117800.0,117790.0,0.1698238]
[1753814585143,1.34432002,117800.0,117790.0,0.1698238]
[1753814585547,1.10207471,117800.0,117790.0,0.1698238]
[1753814588948,0.8598294,117800.0,117790.0,0.1698238]
[1753814589148,1.78183471,117800.0,117790.0,0.4812238]
[1753814589348,1.36978,117800.0,117790.0,0.4812238]
[1753814589546,0.69002,117800.0,117790.0,0.4812238]
[1753814590852,0.8598282,117800.0,117790.0,0.4812238]
[1753814591249,1.10207351,117800.0,117790.0,0.4812238]
[1753814593249,0.32119531,117800.0,117790.0,0.4812238]
[1753814593448,0.07895,117800.0,117790.0,0.8420238]
[1753814593648,0.001,117800.0,117790.0,1.76378911]
[1753814594255,0.001,117800.0,117790.0,1.5215438]
[1753814594950,0.04435,117800.0,117790.0,1.5215438]
[1753814595152,0.217,117800.0,117790.0,1.5215438]
[1753814595862,0.217,117800.0,117790.0,1.5225438]
[1753814596260,0.26301,117800.0,117790.0,1.5225438]
[1753814596456,0.26201,117800.0,117790.0,1.5225438]
[1753814597660,0.216,117800.0,117790.0,1.5225438]
[1753814597865,0.14038,117810.0,117800.0,0.2978884]
[1753814598158,0.10951,117810.0,117800.0,0.4728584]
[1753814598460,0.04335,117810.0,117800.0,0.4728584]
[1753814599260,0.62796,117820.0,117810.0,0.4728438]
[1753814599562,0.07422,117820.0,117810.0,1.52231481]
[1753814599860,0.04335,117820.0,117810.0,1.5136438]
[1753814600162,0.216,117820.0,117810.0,1.5136438]
[1753814600358,0.26201,117820.0,117810.0,1.5136438]
[1753814600961,0.26301,117820.0,117810.0,1.5136438]
[1753814601759,0.14138,117820.0,117810.0,1.5136438]
[1753814601956,0.04435,117820.0,117810.0,1.5136438]
[1753814603067,0.04335,117820.0,117810.0,1.5146438]
[1753814603565,0.56395693,117830.0,117820.0,0.4728296]
[1753814605267,0.32171162,117830.0,117820.0,0.4728296]
[1753814605468,0.56395693,117830.0,117820.0,0.4728296]
[1753814606875,0.55541531,117830.0,117820.0,0.4728296]
[1753814607368,0.56509925,117830.0,117820.0,0.4728296]
[1753814607672,0.55641531,117830.0,117820.0,0.4728296]
[1753814610665,0.73458023,117830.0,117820.0,0.4728296]
[1753814611369,0.56481413,117830.0,117820.0,0.4728296]
[1753814611570,0.73458023,117830.0,117820.0,0.4728296]
[1753814613171,0.56481413,117830.0,117820.0,0.4728296]
[1753814614276,0.73458053,117830.0,117820.0,0.4728296]
[1753814614572,0.55641531,117830.0,117820.0,0.4728296]
[1753814615072,0.31417,117830.0,117820.0,0.4728296]
[1753814615272,0.001,117830.0,117820.0,0.4728296]
[1753814616072,0.04435,117830.0,117820.0,0.4728296]
[1753814617365,0.11051,117830.0,117820.0,0.4728296]
[1753814618576,0.11051,117830.0,117820.0,0.8336296]
[1753814619074,0.001,117830.0,117820.0,1.07587491]
[1753814619676,0.001,117830.0,117820.0,0.8336296]
[1753814620275,0.36624306,117840.0,117830.0,0.1697664]
[1753814620472,0.49162306,117840.0,117830.0,1.5126964]
[1753814620667,0.73386837,117840.0,117830.0,1.5126964]
[1753814621371,0.55541531,117840.0,117830.0,1.5126964]
[1753814621564,0.4839219,117840.0,117830.0,1.1518964]
[1753814621763,1.08696721,117840.0,117830.0,0.8488464]
[1753814621968,1.08696721,117840.0,117830.0,1.0569364]
[1753814622174,1.08696721,117840.0,117830.0,0.4728164]
[1753814622175,0.67497,117840.0,117830.0,0.4728164]
[1753814622378,1.08696721,117840.0,117830.0,0.4728164]
[1753814622569,1.09566307,117840.0,117830.0,0.4728164]
[1753814625478,1.09566307,117840.0,117830.0,1.1531364]
[1753814626381,1.09566307,117840.0,117830.0,0.1697664]
[1753814626382,1.33790838,117840.0,117830.0,0.1697664]
[1753814626682,1.35960757,117840.0,117830.0,0.1697664]
[1753814626875,2.03976757,117840.0,117830.0,0.1697664]
[1753814628083,1.79752226,117840.0,117830.0,0.1697664]
[1753814628581,2.03976757,117840.0,117830.0,0.1697664]
[1753814629077,2.03976757,117840.0,117820.0,0.297096]
[1753814629078,0.2127163,117830.0,117820.0,0.297096]
[1753814629282,1.08138161,117830.0,117820.0,0.297096]
[1753814630284,1.08138161,117830.0,117820.0,0.298096]
[1753814631277,1.08138161,117830.0,117820.0,0.2556519]
[1753814631479,1.08338161,117830.0,117820.0,0.2556519]
[1753814632084,1.08338161,117830.0,117820.0,0.2546519]
[1753814632284,1.10610312,117830.0,117820.0,0.2546519]
[1753814632488,1.08438161,117830.0,117820.0,0.2546519]
[1753814633286,1.08438161,117830.0,117820.0,0.2122091]
[1753814635081,0.91461531,117830.0,117800.0,0.403251]
[1753814635285,1.08141031,117810.0,117800.0,0.5429802]
[1753814635579,1.08141031,117810.0,117800.0,0.3785992]
[1753814635785,1.08141031,117810.0,117800.0,0.2546992]
[1753814635975,1.08141031,117810.0,117800.0,0.4586992]
[1753814637386,1.08141031,117810.0,117800.0,0.4596992]
[1753814637987,1.08141031,117810.0,117800.0,0.4586992]
[1753814638180,1.08241031,117810.0,117800.0,0.4586992]
[1753814639487,1.08241031,117810.0,117800.0,0.5076892]
[1753814641988,0.840165,117810.0,117800.0,0.5076892]
[1753814642189,1.08241031,117810.0,117800.0,0.5076892]
[1753814643389,1.08241031,117810.0,117800.0,0.4652382]
[1753814643591,0.2958595,117800.0,117790.0,0.2946917]
[1753814643786,0.2958739,117790.0,117780.0,0.4581191]
[1753814643993,1.08143921,117790.0,117780.0,0.2947091]
[1753814644192,1.08143921,117790.0,117780.0,0.4162891]
[1753814644688,1.08143921,117790.0,117780.0,0.5071091]
[1753814644992,1.15058737,117790.0,117780.0,0.5091091]
[1753814645590,1.08143921,117790.0,117780.0,0.5091091]
[1753814646491,1.08143921,117790.0,117780.0,0.5101091]
[1753814649095,1.08994481,117790.0,117780.0,0.5101091]
[1753814650093,1.15652815,117790.0,117780.0,0.5101091]
[1753814654691,0.04295,117790.0,117780.0,0.8709091]
[1753814654989,0.14082,117800.0,117790.0,0.465004]
[1753814655192,0.11052,117800.0,117790.0,0.465004]
[1753814655398,0.04378,117800.0,117790.0,1.146644]
[1753814655896,0.2135895,117800.0,117790.0,1.146644]
[1753814656086,0.43704342,117800.0,117790.0,1.146644]
[1753814656492,0.67928873,117800.0,117790.0,1.146644]
[1753814656796,0.73197873,117800.0,117790.0,1.147644]
[1753814657697,0.72343481,117800.0,117790.0,1.147644]
[1753814658994,0.11052,117800.0,117790.0,1.51674694]
[1753814659195,0.04378,117800.0,117790.0,1.51674694]
[1753814659390,0.55362531,117810.0,117800.0,0.2920494]
[1753814659587,0.72342031,117810.0,117800.0,0.4649894]
[1753814660496,0.73191803,117810.0,117800.0,0.4649894]
[1753814660697,0.72342031,117810.0,117800.0,0.4649894]
[1753814660998,0.07508,117810.0,117800.0,0.4649894]
[1753814661297,0.07508,117810.0,117800.0,0.8257894]
[1753814661497,0.14182,117810.0,117800.0,0.8257894]
[1753814661694,0.001,117810.0,117800.0,0.8257894]
[1753814663698,0.04478,117810.0,117800.0,0.8257894]
[1753814663899,0.11152,117810.0,117800.0,0.8257894]
[1753814666390,0.001,117810.0,117800.0,0.8257894]
[1753814666595,0.001,117810.0,117800.0,1.06803471]
[1753814667503,0.001,117810.0,117800.0,0.8257894]
[1753814669099,0.001,117810.0,117800.0,0.8267894]
[1753814669305,0.67839314,117820.0,117810.0,0.464425]
[1753814669499,0.67839314,117820.0,117810.0,1.145345]
[1753814670403,0.67939314,117820.0,117810.0,1.145345]
[1753814670603,0.67106631,117820.0,117810.0,1.145345]
[1753814671305,0.428821,117820.0,117810.0,1.145345]
[1753814671505,0.25904,117820.0,117810.0,1.145345]
[1753814672106,0.25904,117820.0,117810.0,1.506145]
[1753814672602,0.21119,117820.0,117810.0,1.506145]
[1753814672898,0.3809707,117820.0,117810.0,1.145345]
[1753814673106,0.4288207,117820.0,117810.0,1.145345]
[1753814673709,0.67106601,117820.0,117810.0,1.145345]
[1753814674011,0.4288207,117820.0,117810.0,1.145345]
[1753814674203,0.67106601,117820.0,117810.0,1.145345]
[1753814676904,0.67106601,117820.0,117810.0,1.21260696]
[1753814678805,0.001,117820.0,117810.0,1.83465409]
[1753814679910,0.001,117820.0,117810.0,1.83665409]
[1753814680116,1.08352751,117840.0,117830.0,0.4643962]
[1753814680311,1.08352751,117840.0,117830.0,1.1445162]
[1753814680711,1.09201333,117840.0,117830.0,1.1445162]
[1753814682413,1.09301333,117840.0,117830.0,1.1445162]
[1753814683814,0.92326113,117840.0,117830.0,1.1445162]
[1753814690714,0.68101582,117840.0,117830.0,1.1445162]
[1753814691109,0.92326113,117840.0,117830.0,1.1445162]
[1753814691917,0.92326113,117840.0,117830.0,1.0984562]
[1753814692120,0.92326113,117840.0,117830.0,1.1427262]
[1753814693215,0.92326113,117840.0,117830.0,0.9303762]
[1753814693418,1.09301303,117840.0,117830.0,1.0477362]
[1753814693821,0.92326113,117840.0,117830.0,1.0477362]
[1753814694220,1.09301303,117840.0,117830.0,1.0477362]
[1753814694522,1.09301303,117840.0,117830.0,0.3676162]
[1753814694816,1.09301303,117840.0,117830.0,0.2480162]
[1753814695013,1.33525834,117840.0,117830.0,0.1697662]
[1753814695519,0.85076772,117840.0,117830.0,0.1697662]
[1753814695720,1.33525834,117840.0,117830.0,0.1697662]
[1753814696429,0.1697663,117830.0,117810.0,0.10971006]
[1753814696618,1.62865601,117820.0,117810.0,0.2122295]
[1753814696819,0.2951651,117810.0,117800.0,0.2546974]
[1753814697024,1.07452041,117810.0,117800.0,0.2546974]
[1753814697318,0.4714895,117800.0,117790.0,0.2122675]
[1753814697512,0.4249539,117790.0,117780.0,0.2972041]
[1753814697712,1.07454921,117790.0,117780.0,0.2972041]
[1753814698516,1.07454921,117790.0,117780.0,0.4926541]
[1753814698517,0.8323039,117790.0,117780.0,0.4926541]
[1753814698722,1.07454921,117790.0,117780.0,0.2972041]
[1753814699219,1.07454921,117790.0,117780.0,0.4165641]
[1753814699522,1.07454921,117790.0,117780.0,0.2992041]
[1753814699922,1.07454921,117790.0,117780.0,0.3002041]
[1753814700420,1.07454921,117790.0,117780.0,0.5802341]
[1753814700621,0.40289,117790.0,117780.0,0.5802341]
[1753814700824,0.72205,117790.0,117780.0,0.68729821]
[1753814701227,0.40289,117800.0,117790.0,0.4498538]
[1753814701528,0.93158,117800.0,117790.0,0.8106538]
[1753814701715,1.1013894,117800.0,117790.0,0.4498538]
[1753814701916,1.34363471,117800.0,117790.0,0.4498538]
[1753814702229,1.70443471,117800.0,117790.0,0.3652738]
[1753814702927,1.34363471,117800.0,117790.0,0.4498538]
[1753814703322,1.34363471,117800.0,117790.0,0.4508538]
[1753814703937,1.1013894,117800.0,117790.0,0.4508538]
[1753814704230,1.34363471,117800.0,117790.0,0.4508538]
[1753814704823,0.81819,117800.0,117790.0,0.4508538]
[1753814705024,1.1018294,117800.0,117790.0,0.4508538]
[1753814705223,0.93202,117800.0,117790.0,0.4508538]
[1753814706730,0.30168,117800.0,117790.0,0.4508538]
[1753814706932,1.2925,117810.0,117800.0,0.2882094]
[1753814707231,1.462295,117810.0,117800.0,0.4498394]
[1753814709028,1.70454031,117810.0,117800.0,0.4498394]
[1753814709334,1.70554031,117810.0,117800.0,0.4498394]
[1753814713531,1.53574531,117810.0,117800.0,0.4498394]
[1753814714031,1.70554031,117810.0,117800.0,0.4498394]
[1753814714232,1.53574531,117810.0,117800.0,0.4498394]
[1753814714531,0.18885,117810.0,117800.0,0.4498394]
[1753814714729,0.98093,117810.0,117800.0,0.4498394]
[1753814714931,0.98093,117810.0,117800.0,0.8106394]
[1753814715634,0.001,117810.0,117800.0,1.4912794]
[1753814716133,0.10544,117810.0,117800.0,1.4912794]
[1753814716335,0.2492,117810.0,117800.0,1.4912794]
[1753814716832,0.2492,117810.0,117800.0,1.4922794]
[1753814717026,0.2482,117810.0,117800.0,0.8116394]
[1753814717231,0.2482,117810.0,117800.0,1.4922394]
[1753814718427,0.29942,117810.0,117800.0,1.4922394]
[1753814722436,0.71146041,117810.0,117800.0,1.4922394]
[1753814722633,1.07226041,117810.0,117800.0,0.1708094]
[1753814722936,1.31450572,117810.0,117800.0,0.001]
[1753814723136,0.2956795,117800.0,117790.0,0.212276]
[1753814723339,1.99392012,117800.0,117790.0,0.212276]
[1753814724641,1.99392012,117800.0,117790.0,0.213276]
[1753814724941,2.01610151,117800.0,117790.0,0.213276]
[1753814725144,1.75167481,117800.0,117790.0,0.213276]
[1753814725946,1.99392012,117800.0,117790.0,0.213276]
[1753814727039,1.75167481,117800.0,117790.0,0.213276]
[1753814728842,1.99392012,117800.0,117790.0,0.213276]
[1753814729843,1.99392012,117800.0,117790.0,0.001]
[1753814730144,1.99392012,117800.0,117790.0,0.1708239]
[1753814737166,1.75167481,117800.0,117790.0,0.3365039]
[1753814737460,1.99392012,117800.0,117790.0,0.1708239]
[1753814740466,2.06151505,117800.0,117790.0,0.1708239]
[1753814740966,1.81926974,117800.0,117790.0,0.1708239]
[1753814741162,1.81926974,117800.0,117790.0,0.2894339]
[1753814741363,1.81926974,117800.0,117790.0,0.3678039]
[1753814742369,1.81926974,117800.0,117790.0,0.1708239]
[1753814743268,2.06151505,117800.0,117790.0,0.1708239]
[1753814744165,1.07127481,117800.0,117790.0,0.1708239]
[1753814744466,1.0935195,117800.0,117790.0,0.4465039]
[1753814744659,1.33576481,117800.0,117790.0,0.4465039]
[1753814746366,0.1376,117800.0,117790.0,0.68874921]
[1753814746566,0.7113321,117820.0,117810.0,0.444515]
[1753814746771,1.05992741,117820.0,117810.0,0.444515]
[1753814747163,1.08207944,117820.0,117810.0,0.444515]
[1753814747362,1.05992741,117820.0,117810.0,0.444515]
[1753814747866,1.06092741,117820.0,117810.0,0.444515]
[1753814748070,0.70012741,117820.0,117810.0,0.444515]
[1753814748270,0.70212741,117820.0,117810.0,0.444515]
[1753814748665,0.4598821,117820.0,117810.0,0.444515]
[1753814748860,0.70212741,117820.0,117810.0,0.444515]
[1753814749266,0.29009,117820.0,117810.0,0.805315]
[1753814749775,0.003,117820.0,117810.0,1.04756031]
[1753814750367,0.003,117820.0,117810.0,1.72740031]
[1753814750873,0.002,117820.0,117810.0,1.72740031]
[1753814751569,0.82622412,117840.0,117830.0,0.1697663]
[1753814751775,0.82622412,117840.0,117830.0,0.4444863]
[1753814751975,1.06846943,117840.0,117830.0,0.4444863]
[1753814752274,1.05988741,117840.0,117830.0,0.4444863]
[1753814752573,0.69908741,117840.0,117830.0,0.4444863]
[1753814753375,1.05988741,117840.0,117830.0,0.4444863]
[1753814753675,0.4568561,117830.0,117820.0,0.9766708]
[1753814753876,0.69910141,117830.0,117820.0,0.2971108]
[1753814754076,0.4568706,117820.0,117810.0,0.404719]
[1753814754372,1.05991591,117820.0,117810.0,0.212229]
[1753814754579,1.05991591,117820.0,117810.0,0.404719]
[1753814754773,0.69911591,117820.0,117810.0,0.444509]
[1753814755076,1.05991591,117820.0,117810.0,0.444509]
[1753814756875,0.28709,117820.0,117810.0,0.487949]
[1753814757073,0.60154,117830.0,117820.0,0.2122205]
[1753814757279,0.24074,117830.0,117820.0,0.4445005]
[1753814757969,0.69910141,117830.0,117820.0,0.4445005]
[1753814758276,0.69910141,117830.0,117820.0,0.4455005]
[1753814758876,0.28709,117830.0,117820.0,0.4455005]
[1753814759276,0.4568561,117830.0,117820.0,0.4455005]
[1753814759877,0.79754888,117830.0,117820.0,0.4455005]
[1753814761282,0.62778278,117830.0,117820.0,0.4455005]
[1753814761474,0.79754888,117830.0,117820.0,0.4455005]
[1753814763183,1.15834888,117830.0,117820.0,0.1707805]
[1753814764380,0.58683,117830.0,117820.0,0.3595705]
[1753814764684,0.13439,117830.0,117820.0,0.4445005]
[1753814764887,0.04188,117830.0,117820.0,1.1244205]
[1753814765480,0.60154,117840.0,117830.0,0.4444861]
[1753814765981,0.24074,117840.0,117830.0,0.4444861]
[1753814766191,0.17968,117840.0,117830.0,0.4444861]
[1753814766379,0.60154,117850.0,117840.0,0.4444717]
[1753814766681,0.49519,117850.0,117840.0,1.1245517]
[1753814766878,0.40268,117850.0,117840.0,1.1245517]
[1753814767786,0.40368,117850.0,117840.0,1.1245517]
[1753814768977,0.7269873,117850.0,117840.0,1.1245517]
[1753814769183,0.7722773,117850.0,117840.0,1.1245517]
[1753814769383,0.60254,117850.0,117840.0,1.1245517]
[1753814769587,0.60254,117850.0,117840.0,1.1255517]
[1753814769891,0.24074,117850.0,117840.0,1.1255517]
[1753814770190,0.24074,117850.0,117840.0,1.4863517]
[1753814771189,0.24074,117850.0,117840.0,1.1255517]
[1753814771390,0.24074,117850.0,117840.0,1.19279182]
[1753814771690,0.19545,117850.0,117840.0,1.19279182]